fUSD/lending_fUSD_20240214
["ID","MTS","AMOUNT","RATE_DAILY","PERIOD"]
[314016635,1707923564612,-548.76,0.00041369,7]
[314016636,1707923564622,-500.0,0.00041369,7]
[314016637,1707923564631,-661.87,0.00041369,7]
[314016638,1707923564641,-500.0,0.00041369,7]
[314016639,1707923564650,-584.37,0.00041369,7]
[314016640,1707923564660,-520.1,0.00041369,7]
[314016641,1707923564669,-1604.0,0.00041369,7]
[314016642,1707923564678,-500.0,0.00041369,7]
[314016643,1707923564688,-943.16,0.00041369,7]
[314016644,1707923564700,-644.22,0.00041369,7]
[314016645,1707923564709,-1264.92,0.00041369,7]
[314016646,1707923564719,-704.7,0.00041369,7]
[314016647,1707923564728,-1136.26,0.00041369,7]
[314016648,1707923564738,-570.14,0.00041369,7]
[314016649,1707923564747,-500.0,0.00041369,7]
[314016650,1707923564757,-553.03,0.00041369,7]
[314016651,1707923564766,-812.61,0.00041369,7]
[314016652,1707923564775,-519.06,0.00041369,7]
[314016653,1707923564785,-733.41,0.00041369,7]
[314016654,1707923564794,-1130.05,0.00041369,7]
[314016655,1707923564805,-674.48,0.00041369,7]
[314016656,1707923564814,-599.48,0.00041369,7]
[314016657,1707923564823,-699.45,0.00041369,7]
[314016658,1707923564833,-808.31,0.00041369,7]
[314016659,1707923564842,-647.83,0.00041369,7]
[314016660,1707923564851,-1377.65,0.00041369,7]
[314016661,1707923564861,-734.76,0.00041369,7]
[314016662,1707923564870,-1145.4,0.00041369,7]
[314016663,1707923564879,-1361.9,0.00041369,7]
[314016664,1707923564888,-1574.35,0.00041369,7]
[314016665,1707923564897,-500.0,0.00041369,7]
[314016666,1707923564907,-500.0,0.00041369,7]
[314016667,1707923564916,-1000.98,0.00041369,7]
[314016668,1707923564926,-940.65,0.00041369,7]
[314016669,1707923564935,-819.39,0.00041369,7]
[314016670,1707923564948,-664.33,0.00041369,7]
[314016671,1707923564958,-574.43,0.00041369,7]
[314016672,1707923564967,-582.92,0.00041369,7]
[314016673,1707923564977,-500.0,0.00041369,7]
[314016674,1707923564990,-709.41,0.00041369,7]
[314016675,1707923564999,-523.78,0.00041369,7]
[314016676,1707923565009,-584.12,0.00041369,7]
[314016677,1707923565018,-629.64,0.00041369,7]
[314016678,1707923565029,-549.4,0.00041369,7]
[314016679,1707923565038,-1007.67,0.00041369,7]
[314016680,1707923565047,-2090.09,0.00041369,7]
[314016681,1707923565057,-964.24,0.00041369,7]
[314016682,1707923565066,-500.0,0.00041369,7]
[314016683,1707923565077,-500.0,0.00041369,7]
[314016684,1707923565086,-633.52,0.00041369,7]
[314016685,1707923565096,-500.0,0.00041369,7]
[314016686,1707923565105,-1464.25,0.00041369,7]
[314016687,1707923565115,-1470.37,0.00041369,7]
[314016688,1707923565124,-500.0,0.00041369,7]
[314016689,1707923565133,-608.25,0.00041369,7]
[314016690,1707923565142,-760.6,0.00041369,7]
[314016691,1707923565152,-547.73,0.00041369,7]
[314016692,1707923565161,-1725.04,0.00041369,7]
[314016693,1707923565170,-554.39,0.00041369,7]
[314016694,1707923565180,-1351.58,0.00041369,7]
[314016695,1707923565190,-638.35,0.00041369,7]
[314016696,1707923565200,-500.0,0.00041369,7]
[314016697,1707923565209,-619.45,0.00041369,7]
[314016698,1707923565219,-974.92,0.00041369,7]
[314016699,1707923565229,-855.82,0.00041369,7]
[314016700,1707923565238,-1157.75,0.00041369,7]
[314016701,1707923565247,-896.42,0.00041369,2]
[314016702,1707923565256,-500.0,0.00041369,7]
[314016703,1707923565266,-500.0,0.00041369,7]
[314016704,1707923565275,-544.41,0.00041369,7]
[314016705,1707923565284,-586.61,0.00041369,7]
[314016706,1707923565294,-500.0,0.00041369,20]
[314016707,1707923565303,-863.99,0.00041369,7]
[314016708,1707923565313,-601.09824276,0.00041369,7]
[314016709,1707923565322,-969.91,0.00041369,7]
[314016710,1707923565332,-500.0,0.00041369,7]
[314016711,1707923565341,-262.7763752,0.00041369,7]
[314016712,1707923565350,-597.96,0.00041369,2]
[314016713,1707923565360,-1237.52,0.00041369,7]
[314016714,1707923565369,-500.0,0.00041369,7]
[314016715,1707923565378,-500.0,0.00041369,7]
[314016716,1707923565387,-686.48,0.00041369,7]
[314016717,1707923565396,-633.51,0.00041369,7]
[314016718,1707923565405,-500.0,0.00041369,7]
[314016719,1707923565414,-1310.86,0.00041369,7]
[314016720,1707923565423,-646.21,0.00041369,7]
[314016721,1707923565432,-643.81,0.00041369,7]
[314016722,1707923565444,-632.83,0.00041369,7]
[314016723,1707923565453,-1166.74,0.00041369,7]
[314016724,1707923565462,-500.0,0.00041369,7]
[314016725,1707923565471,-500.0,0.00041369,7]
[314016726,1707923565481,-778.72,0.00041369,7]
[314016727,1707923565490,-537.19,0.00041369,7]
[314016728,1707923565499,-522.92,0.00041369,7]
[314016729,1707923565509,-500.0,0.00041369,7]
[314016730,1707923565519,-839.23,0.00041369,7]
[314016731,1707923565528,-500.0,0.00041369,7]
[314016732,1707923565537,-540.0,0.00041369,7]
[314016733,1707923565547,-860.82,0.00041369,7]
[314016734,1707923565556,-710.26,0.00041369,7]
[314016735,1707923565566,-500.0,0.00041369,7]
[314016736,1707923565575,-594.3,0.00041369,7]
[314016737,1707923565585,-1376.8,0.00041369,7]
[314016738,1707923565594,-563.0,0.00041369,7]
[314016739,1707923565602,-689.41,0.00041369,7]
[314016740,1707923565611,-1735.17,0.00041369,7]
[314016741,1707923565621,-1292.66,0.00041369,7]
[314016742,1707923565630,-2576.99,0.00041369,7]
[314016743,1707923565639,-500.0,0.00041369,7]
[314016744,1707923565648,-1880.82,0.00041369,7]
[314016745,1707923565657,-551.14,0.00041369,7]
[314016746,1707923565667,-1420.44,0.00041369,7]
[314016747,1707923565676,-713.29,0.00041369,7]
[314016748,1707923565685,-1306.77,0.00041369,7]
[314016749,1707923565698,-865.48,0.00041369,7]
[314016750,1707923565707,-475.12128351,0.00041369,7]
[314016751,1707923565716,-798.43,0.00041369,7]
[314016752,1707923565725,-792.44,0.00041369,7]
[314016753,1707923565735,-1762.73,0.00041369,7]
[314016754,1707923565744,-500.0,0.00041369,7]
[314016755,1707923565753,-566.85,0.00041369,7]
[314016756,1707923565762,-616.16,0.00041369,7]
[314016757,1707923565771,-721.07,0.00041369,7]
[314016758,1707923565781,-500.0,0.00041369,7]
[314016759,1707923565790,-501.48,0.00041369,7]
[314016760,1707923565800,-1882.77,0.00041369,7]
[314016761,1707923565809,-804.17,0.00041369,7]
[314016762,1707923565818,-500.0,0.00041369,7]
[314016763,1707923565828,-1538.55,0.00041369,7]
[314016764,1707923565837,-437.44008996,0.00041369,7]
[314016765,1707923565846,-747.44,0.00041369,7]
[314016766,1707923565855,-500.0,0.00041369,7]
[314016767,1707923565864,-1390.73,0.00041369,7]
[314016768,1707923565874,-1109.74,0.00041369,7]
[314016769,1707923565883,-632.23,0.00041369,7]
[314016770,1707923565893,-500.0,0.00041369,7]
[314016771,1707923565902,-886.7,0.00041369,7]
[314016772,1707923565911,-500.0,0.00041369,7]
[314016773,1707923565920,-582.6,0.00041369,7]
[314016774,1707923565930,-280.17245344,0.00041369,7]
[314016775,1707923565940,-631.42,0.00041369,7]
[314016776,1707923565949,-1281.5,0.00041369,7]
[314016777,1707923565958,-500.0,0.00041369,7]
[314016778,1707923565968,-500.0,0.00041369,7]
[314016779,1707923565978,-1512.4,0.00041369,7]
[314016780,1707923565987,-669.64,0.00041369,7]
[314016781,1707923565999,-2645.87,0.00041369,7]
[314016782,1707923566009,-649.97,0.00041369,7]
[314016783,1707923566018,-9592.87,0.00041369,7]
[314016784,1707923566028,-6589.39,0.00041369,7]
[314016785,1707923566037,-537.36,0.00041369,7]
[314016786,1707923566047,-500.0,0.00041369,7]
[314016787,1707923566056,-1074.08,0.00041369,7]
[314016788,1707923566065,-712.86,0.00041369,7]
[314016789,1707923566076,-10349.22,0.00041369,7]
[314016790,1707923566086,-500.0,0.00041369,7]
[314016791,1707923566095,-2138.7,0.00041369,7]
[314016792,1707923566105,-2522.18,0.00041369,7]
[314016793,1707923566115,-1253.86,0.00041369,7]
[314016794,1707923566124,-500.0,0.00041369,7]
[314016795,1707923566134,-775.14,0.00041369,7]
[314016796,1707923566143,-5438.42,0.00041369,7]
[314016797,1707923566153,-617.22,0.00041369,7]
[314016798,1707923566163,-5792.28,0.00041369,7]
[314016799,1707923566172,-1042.95,0.00041369,7]
[314016800,1707923566182,-500.0,0.00041369,7]
[314016801,1707923566194,-1305.25,0.00041369,7]
[314016802,1707923566203,-1375.63,0.00041369,7]
[314016803,1707923566213,-500.0,0.00041369,7]
[314016804,1707923566223,-1101.1,0.00041369,7]
[314016805,1707923566233,-1710.63,0.00041369,7]
[314016806,1707923566243,-1942.7,0.00041369,7]
[314016807,1707923566252,-3610.33,0.00041369,7]
[314016808,1707923566262,-656.71,0.00041369,7]
[314016809,1707923566272,-500.0,0.00041369,7]
[314016810,1707923566282,-508.16,0.00041369,7]
[314016811,1707923566291,-500.0,0.00041369,7]
[314016812,1707923566301,-2795.61,0.00041369,7]
[314016813,1707923566310,-13119.1,0.00041369,7]
[314016814,1707923566320,-4841.93,0.00041369,7]
[314016815,1707923566329,-789.06,0.00041369,7]
[314016816,1707923566339,-1486.36,0.00041369,7]
[314016817,1707923566348,-1122.77,0.00041369,7]
[314016818,1707923566357,-3238.15,0.00041369,7]
[314016819,1707923566367,-5897.47,0.00041369,7]
[314016820,1707923566376,-805.46,0.00041369,7]
[314016821,1707923566386,-664.49,0.00041369,7]
[314016822,1707923566395,-1313.77,0.00041369,7]
[314016823,1707923566405,-574.19,0.00041369,7]
[314016824,1707923566414,-11522.74,0.00041369,7]
[314016825,1707923566423,-1290.94,0.00041369,7]
[314016826,1707923566432,-520.12,0.00041369,7]
[314016827,1707923566442,-1511.05,0.00041369,7]
[314016828,1707923566451,-879.95,0.00041369,7]
[314016829,1707923566461,-6267.83,0.00041369,7]
[314016830,1707923566470,-2830.38,0.00041369,7]
[314016831,1707923566480,-763.78,0.00041369,7]
[314016832,1707923566489,-1371.91,0.00041369,7]
[314016833,1707923566498,-626.07,0.00041369,7]
[314016834,1707923566506,-4425.6,0.00041369,7]
[314016835,1707923566516,-986.33,0.00041369,7]
[314016836,1707923566525,-45639.2,0.00041369,7]
[314016837,1707923566535,-5389.09,0.00041369,7]
[314016838,1707923566544,-1240.03,0.00041369,7]
[314016839,1707923566553,-558.68,0.00041369,7]
[314016840,1707923566562,-4636.49,0.00041369,7]
[314016841,1707923566571,-5227.83,0.00041369,7]
[314016842,1707923566581,-525.56,0.00041369,7]
[314016843,1707923566747,-2461.93,0.00041369,7]
[314016844,1707923566757,-682.43,0.00041369,7]
[314016845,1707923566767,-1031.1,0.00041369,7]
[314016846,1707923566777,-1060.11,0.00041369,7]
[314016847,1707923566786,-3757.3,0.00041369,7]
[314016848,1707923566795,-741.06,0.00041369,7]
[314016849,1707923566804,-777.41,0.00041369,7]
[314016850,1707923566814,-838.79,0.00041369,7]
[314016851,1707923566823,-1479.6,0.00041369,7]
[314016852,1707923566834,-866.09,0.00041369,7]
[314016853,1707923566844,-3315.92,0.00041369,7]
[314016854,1707923566853,-8419.92,0.00041369,7]
[314016855,1707923566863,-1669.6,0.00041369,7]
[314016856,1707923566871,-1425.19,0.00041369,7]
[314016857,1707923566881,-941.92,0.00041369,7]
[314016858,1707923566890,-321.80037738,0.00041369,7]
[314016859,1707923566901,-1068.3,0.00041369,7]
[314016860,1707923566910,-978.39,0.00041369,7]
[314016861,1707923566919,-1743.01,0.00041369,7]
[314016862,1707923566928,-500.0,0.00041369,7]
[314016863,1707923566937,-527.53,0.00041369,7]
[314016864,1707923566948,-2618.16,0.00041369,7]
[314016865,1707923566958,-16404.96,0.00041369,7]
[314016866,1707923566967,-5014.41,0.00041369,7]
[314016867,1707923566979,-1253.74,0.00041369,7]
[314016868,1707923566989,-1428.29,0.00041369,7]
[314016869,1707923566998,-12919.21,0.00041369,7]
[314016870,1707923567007,-500.0,0.00041369,7]
[314016871,1707923567017,-725.51,0.00041369,7]
[314016872,1707923567026,-564.17,0.00041369,7]
[314016873,1707923567036,-670.32,0.00041369,7]
[314016874,1707923567045,-608.21,0.00041369,7]
[314016875,1707923567055,-3982.22,0.00041369,7]
[314016876,1707923567065,-15886.12,0.00041369,7]
[314016877,1707923567074,-2293.57,0.00041369,7]
[314016878,1707923567083,-1912.2,0.00041369,7]
[314016879,1707923567092,-1078.52,0.00041369,7]
[314016880,1707923567102,-1675.86,0.00041369,7]
[314016881,1707923567112,-4682.24,0.00041369,7]
[314016882,1707923567121,-998.25,0.00041369,7]
[314016883,1707923567131,-1548.99,0.00041369,7]
[314016884,1707923567140,-1678.3,0.00041369,7]
[314016885,1707923567150,-2172.47,0.00041369,7]
[314016886,1707923567159,-4636.94,0.00041369,7]
[314016887,1707923567168,-905.58,0.00041369,7]
[314016888,1707923567178,-3347.59,0.00041369,7]
[314016889,1707923567187,-24853.72,0.00041369,7]
[314016890,1707923567198,-2682.03,0.00041369,7]
[314016891,1707923567208,-500.0,0.00041369,7]
[314016892,1707923567218,-741.23,0.00041369,7]
[314016893,1707923567227,-504.17,0.00041369,7]
[314016894,1707923567238,-4661.42,0.00041369,7]
[314016895,1707923567247,-644.02,0.00041369,7]
[314016896,1707923567257,-1447.91,0.00041369,7]
[314016897,1707923567267,-870.17,0.00041369,7]
[314016898,1707923567276,-575.73,0.00041369,2]
[314016899,1707923567286,-513.51,0.00041369,7]
[314016900,1707923567295,-13772.64,0.00041369,7]
[314016901,1707923567304,-734.67,0.00041369,7]
[314016902,1707923567313,-861.53,0.00041369,7]
[314016903,1707923567323,-4963.65,0.00041369,7]
[314016904,1707923567332,-4015.51,0.00041369,7]
[314016905,1707923567342,-1647.66,0.00041369,7]
[314016906,1707923567351,-500.0,0.00041369,7]
[314016907,1707923567360,-834.17,0.00041369,7]
[314016908,1707923567370,-1651.62,0.00041369,7]
[314016909,1707923567380,-1367.71,0.00041369,7]
[314016910,1707923567389,-705.01,0.00041369,7]
[314016911,1707923567399,-738.43,0.00041369,7]
[314016912,1707923567408,-500.0,0.00041369,7]
[314016913,1707923567418,-1232.76,0.00041369,7]
[314016914,1707923567427,-2624.93,0.00041369,7]
[314016915,1707923567437,-1605.94,0.00041369,7]
[314016916,1707923567448,-1397.98,0.00041369,7]
[314016917,1707923567457,-6303.05,0.00041369,7]
[314016918,1707923567466,-3882.2,0.00041369,7]
[314016919,1707923567475,-1424.26,0.00041369,7]
[314016920,1707923567484,-6796.38,0.00041369,7]
[314016921,1707923567493,-1430.04,0.00041369,7]
[314016922,1707923567503,-9115.46,0.00041369,7]
[314016923,1707923567511,-876.71,0.00041369,7]
[314016924,1707923567520,-6722.84,0.00041369,7]
[314016925,1707923567530,-1159.69,0.00041369,7]
[314016926,1707923567539,-1566.04,0.00041369,7]
[314016927,1707923567548,-5625.73,0.00041369,7]
[314016928,1707923567557,-742.15,0.00041369,7]
[314016929,1707923567566,-205.13788457,0.00041369,7]
[314016930,1707923567575,-1074.84,0.00041369,7]
[314016931,1707923567584,-21955.42,0.00041369,7]
[314016932,1707923567593,-10536.73,0.00041369,7]
[314016933,1707923567603,-1224.55,0.00041369,7]
[314016934,1707923567612,-500.0,0.00041369,7]
[314016935,1707923567621,-1141.82,0.00041369,7]
[314016936,1707923567630,-3349.17,0.00041369,7]
[314016937,1707923567639,-4103.23,0.00041369,7]
[314016938,1707923567648,-15646.43,0.00041369,7]
[314016939,1707923567657,-500.0,0.00041369,7]
[314016940,1707923567666,-580.0,0.00041369,7]
[314016941,1707923567676,-888.9,0.00041369,7]
[314016942,1707923567685,-849.7,0.00041369,7]
[314016943,1707923567694,-1131.16,0.00041369,7]
[314016944,1707923567703,-970.39,0.00041369,7]
[314016945,1707923567713,-1000.0,0.00041369,30]
[314016946,1707923567722,-2458.64,0.00041369,7]
[314016947,1707923567731,-1032.81,0.00041369,7]
[314016948,1707923567741,-940.22,0.00041369,7]
[314016949,1707923567750,-845.63,0.00041369,7]
[314016950,1707923567759,-861.05,0.00041369,7]
[314016951,1707923567769,-2020.71,0.00041369,7]
[314016952,1707923567778,-655.93,0.00041369,7]
[314016953,1707923567787,-4353.77,0.00041369,7]
[314016954,1707923567796,-2136.24,0.00041369,7]
[314016955,1707923567805,-563.78095476,0.00041369,7]
[314016956,1707923567814,-1868.07,0.00041369,7]
[314016957,1707923567824,-3468.32,0.00041369,7]
[314016958,1707923567833,-1175.69,0.00041369,7]
[314016959,1707923567842,-4307.44,0.00041369,7]
[314016960,1707923567852,-2131.96,0.00041369,7]
[314016961,1707923567861,-4133.28,0.00041369,7]
[314016962,1707923567871,-3754.14,0.00041369,7]
[314016963,1707923567880,-500.0,0.00041369,7]
[314016964,1707923567889,-1200.28,0.00041369,7]
[314016965,1707923567899,-551.94,0.00041369,7]
[314016966,1707923567908,-1428.62,0.00041369,7]
[314016967,1707923567918,-2643.73,0.00041369,7]
[314016968,1707923567927,-1293.93,0.00041369,7]
[314016969,1707923567937,-4255.94,0.00041369,7]
[314016970,1707923567947,-1073.43,0.00041369,7]
[314016971,1707923567956,-1154.7,0.00041369,7]
[314016972,1707923567965,-1681.08,0.00041369,7]
[314016973,1707923567975,-749.27,0.00041369,7]
[314016974,1707923567985,-696.07,0.00041369,7]
[314016975,1707923567996,-1992.67,0.00041369,7]
[314016976,1707923568006,-1960.66,0.00041369,7]
[314016977,1707923568015,-4598.11,0.00041369,7]
[314016978,1707923568024,-2148.61,0.00041369,7]
[314016979,1707923568034,-776.5,0.00041369,7]
[314016980,1707923568044,-876.47,0.00041369,7]
[314016981,1707923568054,-759.83,0.00041369,7]
[314016982,1707923568063,-907.63,0.00041369,7]
[314016983,1707923568073,-1863.83,0.00041369,7]
[314016984,1707923568083,-22229.37,0.00041369,7]
[314016985,1707923568092,-2233.48,0.00041369,7]
[314016986,1707923568101,-1407.78,0.00041369,7]
[314016987,1707923568110,-500.0,0.00041369,7]
[314016988,1707923568120,-2807.7,0.00041369,7]
[314016989,1707923568130,-749.48,0.00041369,7]
[314016990,1707923568139,-770.43,0.00041369,7]
[314016991,1707923568149,-500.0,0.00041369,7]
[314016992,1707923568158,-4409.87,0.00041369,7]
[314016993,1707923568168,-940.66,0.00041369,7]
[314016994,1707923568177,-1582.96,0.00041369,7]
[314016995,1707923568187,-778.24,0.00041369,7]
[314016996,1707923568198,-819.98,0.00041369,7]
[314016997,1707923568207,-501.61,0.00041369,7]
[314016998,1707923568217,-188.825359,0.0004137,14]
[314016999,1707923568226,-157.0252244,0.00041373,30]
[314017000,1707923568236,-154.65466196,0.00041373,30]
[314017001,1707923568245,-150.0,0.00041396,120]
[314017002,1707923568254,-150.0,0.00041415,3]
[314017003,1707923568264,-150.0,0.00041415,3]
[314017004,1707923568273,-1208.0,0.00041429,30]
[314017005,1707923568283,-151.02142,0.00041448,20]
[314017006,1707923568292,-657.90689477,0.00041448,30]
[314017007,1707923568302,-175090.1782,0.0004145,5]
[314017008,1707923568311,-152.44209303,0.0004145,30]
[314017009,1707923568320,-150.0,0.00041475,30]
[314017010,1707923568330,-501.576987,0.000415,2]
[314017011,1707923568339,-1000.0,0.000415,30]
[314017012,1707923568348,-325.10774121,0.000415,28]
[314017013,1707923568357,-2110.0,0.000415,15]
[314017014,1707923568367,-4085.29,0.000415,7]
[314017015,1707923568376,-354.81402348,0.00041505,30]
[314017016,1707923568386,-415.92961454,0.00041522,4]
[314017017,1707923568395,-157.0252244,0.00041522,30]
[314017018,1707923568405,-657.90689477,0.00041529,30]
[314017019,1707923568415,-657.90689477,0.00041532,30]
[314017020,1707923568424,-239.29468169,0.00041547,30]
[314017021,1707923568434,-1532.39478887,0.00041548,7]
[314017022,1707923568446,-631.18465979,0.00041548,7]
[314017023,1707923568456,-996.19465956,0.00041548,7]
[314017024,1707923568466,-1222.41591722,0.00041548,7]
[314017025,1707923568475,-1120.06673539,0.00041548,7]
[314017026,1707923568484,-235.13880492,0.00041559,30]
[314017027,1707923568494,-239.29468169,0.00041576,30]
[314017028,1707923568504,-657.90689477,0.00041584,30]
[314017029,1707923568513,-164.31929539,0.00041591,30]
[314017030,1707923568523,-173.73641634,0.000416,30]
[314017031,1707923568533,-1000.0,0.000416,2]
[314017032,1707923568542,-150.492989,0.000416,2]
[314017033,1707923568552,-150.0,0.00041603,3]
[314017034,1707923568561,-150.0,0.00041603,3]
[314017035,1707923568571,-157.0252244,0.00041611,30]
[314017036,1707923568581,-151.44662462,0.00041641,30]
[314017037,1707923568590,-500.0,0.00041643,31]
[314017038,1707923568600,-500.0,0.00041643,7]
[314017039,1707923568610,-636.47,0.00041643,7]
[314017040,1707923568620,-968.71,0.00041643,7]
[314017041,1707923568630,-347.73471199,0.00041643,7]
[314017042,1707923568639,-500.0,0.00041643,7]
[314017043,1707923568649,-500.0,0.00041643,7]
[314017044,1707923568658,-500.0,0.00041643,7]
[314017045,1707923568667,-536.83,0.00041643,7]
[314017046,1707923568677,-511.55,0.00041643,7]
[314017047,1707923568687,-564.0,0.00041643,7]
[314017048,1707923568700,-1240.83,0.00041643,7]
[314017049,1707923568710,-1171.11,0.00041643,7]
[314017050,1707923568719,-564.08,0.00041643,7]
[314017051,1707923568729,-1281.17,0.00041643,7]
[314017052,1707923568738,-1147.23,0.00041643,7]
[314017053,1707923568749,-313.15357851,0.00041643,7]
[314017054,1707923568758,-568.35,0.00041643,7]
[314017055,1707923568768,-1433.14,0.00041643,7]
[314017056,1707923568778,-530.02,0.00041643,7]
[314017057,1707923568787,-1489.83,0.00041643,7]
[314017058,1707923568797,-528.29,0.00041643,7]
[314017059,1707923568806,-1024.97,0.00041643,7]
[314017060,1707923568816,-569.56,0.00041643,7]
[314017061,1707923568825,-785.09,0.00041643,7]
[314017062,1707923568834,-1152.13,0.00041643,7]
[314017063,1707923568843,-1376.22,0.00041643,2]
[314017064,1707923568852,-500.0,0.00041643,7]
[314017065,1707923568861,-770.95,0.00041643,7]
[314017066,1707923568870,-1599.92,0.00041643,7]
[314017067,1707923568878,-500.0,0.00041643,7]
[314017068,1707923568887,-1153.23,0.00041643,7]
[314017069,1707923568896,-1045.09,0.00041643,7]
[314017070,1707923568905,-774.56,0.00041643,7]
[314017071,1707923568915,-1031.35,0.00041643,7]
[314017072,1707923568924,-548.76,0.00041643,7]
[314017073,1707923568932,-500.0,0.00041643,7]
[314017074,1707923568941,-661.87,0.00041643,7]
[314017075,1707923568954,-500.0,0.00041643,7]
[314017076,1707923568963,-584.37,0.00041643,7]
[314017077,1707923568972,-520.1,0.00041643,7]
[314017078,1707923568982,-1604.0,0.00041643,7]
[314017079,1707923568992,-500.0,0.00041643,7]
[314017080,1707923569003,-943.16,0.00041643,7]
[314017081,1707923569012,-644.22,0.00041643,7]
[314017082,1707923569021,-1264.92,0.00041643,7]
[314017083,1707923569030,-1136.26,0.00041643,7]
[314017084,1707923569040,-704.7,0.00041643,7]
[314017085,1707923569050,-570.14,0.00041643,7]
[314017086,1707923569059,-411.67671463,0.00041643,7]
[314017087,1707923569068,-553.03,0.00041643,7]
[314017088,1707923569078,-812.61,0.00041643,7]
[314017089,1707923569087,-519.06,0.00041643,7]
[314017090,1707923569097,-733.41,0.00041643,7]
[314017091,1707923569106,-1130.05,0.00041643,7]
[314017092,1707923569115,-674.48,0.00041643,7]
[314017093,1707923569125,-599.48,0.00041643,7]
[314017094,1707923569134,-699.45,0.00041643,7]
[314017095,1707923569144,-808.31,0.00041643,7]
[314017096,1707923569153,-647.83,0.00041643,7]
[314017097,1707923569162,-1377.65,0.00041643,7]
[314017098,1707923569171,-734.76,0.00041643,7]
[314017099,1707923569180,-1145.4,0.00041643,7]
[314017100,1707923569189,-1361.9,0.00041643,7]
[314017101,1707923569201,-1574.35,0.00041643,7]
[314017102,1707923569210,-500.0,0.00041643,7]
[314017103,1707923569220,-500.0,0.00041643,7]
[314017104,1707923569230,-1000.98,0.00041643,7]
[314017105,1707923569239,-940.65,0.00041643,7]
[314017106,1707923569248,-819.39,0.00041643,7]
[314017107,1707923569257,-664.33,0.00041643,7]
[314017108,1707923569266,-574.43,0.00041643,7]
[314017109,1707923569277,-582.92,0.00041643,7]
[314017110,1707923569286,-207.58679566,0.00041643,7]
[314017111,1707923569294,-709.41,0.00041643,7]
[314017112,1707923569304,-523.78,0.00041643,7]
[314017113,1707923569313,-584.12,0.00041643,7]
[314017114,1707923569322,-629.64,0.00041643,7]
[314017115,1707923569332,-549.4,0.00041643,7]
[314017116,1707923569341,-1007.67,0.00041643,7]
[314017117,1707923569350,-2090.09,0.00041643,7]
[314017118,1707923569359,-964.24,0.00041643,7]
[314017119,1707923569369,-284.05,0.00041643,7]
[314017120,1707923569378,-500.0,0.00041643,7]
[314017121,1707923569387,-633.52,0.00041643,7]
[314017122,1707923569397,-500.0,0.00041643,7]
[314017123,1707923569406,-1464.25,0.00041643,7]
[314017124,1707923569415,-1470.37,0.00041643,7]
[314017125,1707923569424,-500.0,0.00041643,7]
[314017126,1707923569434,-608.25,0.00041643,7]
[314017127,1707923569443,-760.6,0.00041643,7]
[314017128,1707923569453,-547.73,0.00041643,7]
[314017129,1707923569462,-1725.04,0.00041643,7]
[314017130,1707923569472,-554.39,0.00041643,7]
[314017131,1707923569482,-1351.58,0.00041643,7]
[314017132,1707923569491,-638.35,0.00041643,7]
[314017133,1707923569500,-419.02728156,0.00041643,7]
[314017134,1707923569510,-619.45,0.00041643,7]